[Event "DVM U20w 2021"]
[Site "Kiel"]
[Date "2022.07.24"]
[Round "4"]
[White "Mohammad Dawed, Lizan"]
[Black "Albayrak, Melissa"]
[Result "0-1"]
[ECO "D00"]
[WhiteElo "799"]
[BlackElo "1366"]
[Annotator "NA COMBH"]
[PlyCount "66"]
[EventDate "2022.07.23"]
[EventType "team-tourn"]
[EventRounds "7"]
[EventCountry "GER"]
[SourceTitle "playchess.com"]
[Source "ChessBase"]
[SourceQuality "1"]
[TimeControl "40/5400+30:1800+30"]

1. d4 {[%emt 0:00:32]} d5 {[%emt 0:00:04]} 2. Bf4 {[%emt 0:00:10]} Nf6 {[%emt 0:00:09]} 3. e3 {[%emt 0:01:12]} Nc6 {[%emt 0:00:08]} 4. Nc3 {[%emt 0:00:32]} Bf5 {[%emt 0:00:12]} 5. Nb5 {[%emt 0:00:31]} Rc8 {[%emt 0:00:45]} 6. Bd3 {[%emt 0:01:13]} Bxd3 {[%emt 0:00:58]} 7. Qxd3 {[%emt 0:00:27]} e6 {[%emt 0:01:47]} 8. Qb3 {[%emt 0:01:27]} Bd6 {[%emt 0:01:35]} 9. Nh3 {[%emt 0:00:34]} a6 {[%emt 0:01:28]} 10. Bxd6 {[%emt 0:01:40]} cxd6 {[%emt 0:00:45]} 11. Nc3 {[%emt 0:00:31]} Qc7 {[%emt 0:04:09]} 12. O-O {[%emt 0:00:27]} O-O {[%emt 0:00:10]} 13. Rad1 {[%emt 0:01:33]} Rcd8 {[%emt 0:02:57]} 14. Rfe1 {[%emt 0:00:37]} b5 {[%emt 0:01:26]} 15. e4 {[%emt 0:00:18]} dxe4 {[%emt 0:02:38]} 16. d5 {[%emt 0:00:36]} exd5 {[%emt 0:01:12]} 17. Nxd5 {[%emt 0:00:11]} Nxd5 {[%emt 0:00:07]} 18. Rxd5 {[%emt 0:01:11]} Rfe8 {[%emt 0:01:24]} 19. Ng5 {[%emt 0:00:28]} Ne5 {[%emt 0:01:52]} 20. h3 {[%emt 0:00:38]} Qc6 {[%emt 0:00:55]} 21. Rd4 {[%emt 0:02:11]} d5 {[%emt 0:01:31]} 22. Rc1 {[%emt 0:02:57]} h6 {[%emt 0:00:10]} 23. f4 {[%emt 0:00:40]} Nc4 {[%emt 0:00:13]} 24. h4 {[%emt 0:03:35]} hxg5 {[%emt 0:00:10]} 25. hxg5 {[%emt 0:00:13]} Qc5 {[%emt 0:00:23]} 26. c3 {[%emt 0:00:53]} e3 {[%emt 0:00:33]} 27. f5 {[%emt 0:00:52]} e2 {[%emt 0:00:21]} 28. Kf2 {[%emt 0:00:15]} Qe7 {[%emt 0:02:46]} 29. f6 {[%emt 0:01:12]} e1=Q+ {[%emt 0:00:26]} 30. Kf3 {[%emt 0:02:38]} Q7e3+ {[%emt 0:00:07]} 31. Kg4 {[%emt 0:00:28]} Q1g3+ {[%emt 0:00:05]} 32. Kh5 {[%emt 0:01:19]} g6+ {[%emt 0:01:55]} 33. Kh6 {[%emt 0:00:00]} Qexg5# {[%emt 0:00:43]} 0-1

[Event "DVM U20w 2021"]
[Site "Kiel"]
[Date "2022.07.25"]
[Round "5"]
[White "Hrebenshchykova, Yelyzaveta"]
[Black "Basovskiy, Jana"]
[Result "1-0"]
[ECO "B45"]
[WhiteElo "2088"]
[BlackElo "1867"]
[Annotator "TA"]
[PlyCount "61"]
[EventDate "2022.07.23"]
[EventType "team-tourn"]
[EventRounds "7"]
[EventCountry "GER"]
[SourceTitle "playchess.com"]
[Source "ChessBase"]
[SourceQuality "1"]
[TimeControl "40/5400+30:1800+30"]

{[%evp 29,61,0,0,0,0,0,0,0,10,0,25,1,157,150,153,144,132,144,138,125,243,179,321,325,508,347,29983,1293,29989,29987,29995,29996,29996,29997]} 1. e4 {[%emt 0:00:10]} c5 {[%emt 0:00:03]} 2. Nf3 {[%emt 0:00:04]} e6 {[%emt 0:00:04]} 3. d4 {[%emt 0:00:05]} cxd4 {[%emt 0:00:04]} 4. Nxd4 {[%emt 0:00:04]} Nf6 {[%emt 0:00:04]} 5. Nc3 {[%emt 0:00:26]} Nc6 {[%emt 0:00:05]} 6. Nxc6 {[%emt 0:07:07]} bxc6 {[%emt 0:00:08]} 7. e5 {[%emt 0:00:03]} Nd5 {[%emt 0:00:05]} 8. Ne4 {[%emt 0:00:05]} Qa5+ {[%emt 0:00:06]} 9. c3 {[%emt 0:17:47][%cal Bc2c3,Bc3c4][%mdl 32]} Qc7 {[%emt 0:00:07]} 10. f4 {[%emt 0:01:52]} Qb6 {[%emt 0:00:17]} 11. c4 {[%emt 0:07:55]} Bb4+ {[%emt 0:00:10]} 12. Ke2 {[%emt 0:00:07]} f5 {[%emt 0:00:12]} 13. Nf2 {[%emt 0:01:54]} Ba6 {[%emt 0:00:14]} 14. Kf3 {[%emt 0:01:01]} Ne7 {[%emt 0:00:09]} 15. Be3 {[%emt 0:06:21]} Bc5 {[%emt 0:00:05]} 16. Bxc5 {[%emt 0:13:32] B45: Sicilian Four Knights.} Qxc5 {[%emt 0:01:24]} 17. Qd6 {[%emt 0:02:29]} Qa5 {[%emt 0:00:22][%cal Og7g5]} 18. Be2 {[%emt 0:09:43] The position is equal.} g5 {[%emt 0:10:33]} 19. Rhd1 {[%emt 0:00:08]} Rd8 {[%emt 0:07:15]} 20. b3 {[%emt 0:05:57] [#]} (20. fxg5 Ng6 $15) 20... gxf4 $146 {[%emt 0:19:42] [#]} (20... Rg8 21. Nd3 $16) (20... g4+ $1 $11 21. Kg3 Qb6) ({Predecessor:} 20... Qb6 21. fxg5 Ng6 22. g3 h6 23. gxh6 Rxh6 24. Nd3 Nh8 25. Qc5 Nf7 26. Qxb6 axb6 27. h4 c5 {0-1 (81) Kosintseva,N (2486)-Cmilyte,V (2497) Konya 2009}) 21. Nd3 $1 $16 {[%emt 0:00:09]} Ng6 {[%emt 0:00:54] [#]} 22. Kf2 $1 {[%emt 0:00:49][%mdl 1024] White has strong compensation.} Qb6+ {[%emt 0:02:07]} 23. Nc5 {[%emt 0:02:06] aiming for a4.} Bc8 {[%emt 0:01:10]} (23... Kf7 $2 24. a4) 24. Bh5 $36 {[%emt 0:01:33][%mdl 2048] g4 is the strong threat. Black is under strong pressure. 0x0.001f24dfab16dp-1022s more active pieces. The black rooks are badly placed.} Rg8 {[%emt 0:03:44]} (24... Kf7 $16 {was worth a try.}) 25. g3 {[%emt 0:01:40] Black must now prevent Rd4.} fxg3+ {[%emt 0:05:54]} (25... Kf7 $142 26. gxf4 Rde8) 26. hxg3 $18 {[%emt 0:00:05] Really sharp!} ({Less strong is} 26. Kxg3 Kf7 $14) 26... Qa5 {[%emt 0:00:17]} (26... Kf7 {was necessary.} 27. g4 Rg7) 27. a3 {[%emt 0:04:32]} ({Don't blunder} 27. Nxe6 $2 dxe6 28. Qxd8+ Qxd8 $19) 27... Rf8 $2 {[%emt 0:12:25]} (27... Kf7 $18 28. b4 Qb6) 28. b4 {[%emt 0:01:04]} ({Wrong is} 28. Nxe6 $2 dxe6 29. Qb4 Qb6+ 30. c5 Qxb4 31. axb4 Rxd1 32. Rxd1 Ke7 33. Bxg6 hxg6 $19) (28. Bxg6+ $142 hxg6 29. b4 Qxc5+ 30. Qxc5 Rh8 31. Rh1 Kf7 32. Qxa7 Rh5 33. Rxh5 gxh5 34. Rh1) 28... Qb6 {[%emt 0:00:10]} 29. Rh1 {[%emt 0:00:37] White mates.} a5 {[%emt 0:01:30]} 30. Bxg6+ {[%emt 0:00:09]} hxg6 {[%emt 0:00:05]} 31. Rh7 {[%emt 0:00:04] Black did not feel at home in the position after the opening.  Weighted Error Value: White=0.18 (very precise) /Black=1.05} 1-0

[Event "DVM U20w 2021"]
[Site "Kiel"]
[Date "2022.07.25"]
[Round "5"]
[White "Browning, Rebecca"]
[Black "Peglau, Dora"]
[Result "1-0"]
[ECO "B14"]
[WhiteElo "1938"]
[BlackElo "1920"]
[Annotator "TA"]
[PlyCount "73"]
[EventDate "2022.07.23"]
[EventType "team-tourn"]
[EventRounds "7"]
[EventCountry "GER"]
[SourceTitle "playchess.com"]
[Source "ChessBase"]
[SourceQuality "1"]
[TimeControl "40/5400+30:1800+30"]

{[%evp 20,73,11,9,29,28,43,6,17,5,14,0,3,0,24,25,76,76,76,76,77,65,115,92,301,274,447,452,439,430,437,431,422,422,479,435,581,570,539,377,372,305,395,428,458,435,564,543,547,582,1075,1006,1127,1092,1623,1349]} 1. e4 {[%emt 0:00:02][%cal Be2e4,Be4d5][%mdl 32]} c5 {[%emt 0:00:40]} 2. c3 {[%emt 0:00:14]} g6 {[%emt 0:00:20]} 3. d4 {[%emt 0:01:08]} cxd4 {[%emt 0:00:10]} 4. cxd4 {[%emt 0:01:25]} d5 {[%emt 0:00:23]} 5. exd5 {[%emt 0:01:10]} Nf6 {[%emt 0:00:12]} 6. Nf3 {[%emt 0:01:21]} Bg7 {[%emt 0:00:24]} 7. Nc3 {[%emt 0:00:23]} O-O {[%emt 0:01:27]} 8. Bc4 {[%emt 0:00:37]} Nbd7 {[%emt 0:02:47]} 9. d6 {[%emt 0:01:02]} exd6 {[%emt 0:01:09]} 10. O-O {[%emt 0:00:08]} Nb6 {[%emt 0:01:02]} 11. Bb3 {[%emt 0:00:07]} d5 {[%emt 0:05:52] B14: Caro-Kann: Panov-Botvinnik Attack with 5...e6 and 5...g6.} 12. Bg5 {[%emt 0:00:50]} h6 {[%emt 0:02:09]} 13. Bf4 {[%emt 0:00:42] [#]} Be6 $146 {[%emt 0:02:52] The position is equal.} ({Predecessor:} 13... Bf5 14. Re1 a6 15. Ne5 Rc8 16. Rc1 Nc4 17. Na4 Nh5 18. Be3 b5 19. Nc5 Rxc5 20. dxc5 Nxe5 21. Bxd5 {0-1 (27) Dickmann,T (2013)-Tornay Gomez,J (2100) Heusenstamm 2015}) 14. Re1 {[%emt 0:01:47]} Rc8 {[%emt 0:02:16]} 15. Ne5 {[%emt 0:01:34][%cal Oe5g6]} Re8 {[%emt 0:06:41]} 16. Bc2 {[%emt 0:06:30]} Kh7 {[%emt 0:11:03]} 17. Qb1 {[%emt 0:04:45][%cal Rc2g6]} Kh8 {[%emt 0:20:49] [#]} (17... Ne4) (17... Kg8 $11 {keeps the balance.}) 18. Nb5 $1 $16 {[%emt 0:03:59]} Kg8 {[%emt 0:12:02]} 19. Nxa7 {[%emt 0:04:03]} Ra8 {[%emt 0:00:05]} 20. Nb5 {[%emt 0:00:17][%cal Oc2g6] White is more active.} g5 {[%emt 0:03:43]} (20... Nh5 $14 21. Be3 Nc4) 21. Bg3 {[%emt 0:00:44]} Nh5 $2 {[%emt 0:02:50] Black cannot hold the game after this.} (21... Ne4 $16) 22. Nc7 {[%emt 0:02:19] aiming for Bh7+.} Qxc7 $2 {[%emt 0:06:10]} (22... Nxg3 23. Nxe8 Qxe8) 23. Bh7+ $18 {[%emt 0:00:05]} Kh8 {[%emt 0:00:05] [#]} 24. Ng6+ $1 {[%emt 0:00:04][%mdl 576] Discovered Attack} fxg6 {[%emt 0:00:06]} (24... Kxh7 25. Ne7+) 25. Bxc7 {[%emt 0:00:04]} Kxh7 {[%emt 0:00:05]} 26. Bxb6 {[%emt 0:00:09]} Bf5 {[%emt 0:00:56]} 27. Qc1 {[%emt 0:01:00]} Nf4 {[%emt 0:01:02]} 28. Rxe8 {[%emt 0:09:11]} Rxe8 {[%emt 0:00:02]} 29. Qd2 {[%emt 0:00:34]} Re2 {[%emt 0:00:29]} 30. Qc3 {[%emt 0:05:27]} Rc2 {[%emt 0:01:34] Hoping for ...Ne2+.} 31. Qb3 {[%emt 0:03:53]} Be4 {[%emt 0:01:16] White is clearly winning.} 32. Re1 {[%emt 0:03:25]} h5 {[%emt 0:03:08]} 33. h3 {[%emt 0:00:22]} Rd2 {[%emt 0:01:33]} 34. Ba5 {[%emt 0:04:49][%csl LRb7,LRd2]} Rxd4 {[%emt 0:01:44]} 35. Bc3 {[%emt 0:00:07]} Rd3 {[%emt 0:03:01]} 36. Qxb7 {[%emt 0:00:12][%csl Gc3][%cal Rb7g7]} Ne6 {[%emt 0:00:12]} 37. f3 {[%emt 0:01:16] Weighted Error Value: White=0.12 (very precise) /Black=0.48} 1-0

[Event "DVM U20w 2021"]
[Site "Kiel"]
[Date "2022.07.25"]
[Round "5"]
[White "Rudolph, Eva"]
[Black "Tabakh, Najat"]
[Result "1-0"]
[ECO "B01"]
[WhiteElo "1892"]
[BlackElo "1313"]
[Annotator "NA RC COMBH"]
[PlyCount "93"]
[EventDate "2022.07.23"]
[EventType "team-tourn"]
[EventRounds "7"]
[EventCountry "GER"]
[SourceTitle "playchess.com"]
[Source "ChessBase"]
[SourceQuality "1"]
[TimeControl "40/5400+30:1800+30"]

1. e4 {[%emt 0:00:03]} d5 {[%emt 0:00:12]} 2. exd5 {[%emt 0:00:05]} Nf6 {[%emt 0:00:17]} 3. c4 {[%emt 0:00:22]} Bf5 {[%emt 0:04:57]} 4. Nf3 {[%emt 0:01:16]} g6 {[%emt 0:01:13]} 5. Nc3 {[%emt 0:01:14]} Bg7 {[%emt 0:00:57]} 6. Be2 {[%emt 0:00:42]} c6 {[%emt 0:01:01]} 7. dxc6 {[%emt 0:02:34]} Nxc6 {[%emt 0:00:16]} 8. d4 {[%emt 0:00:24]} O-O {[%emt 0:00:40]} 9. O-O {[%emt 0:01:03]} Ne4 {[%emt 0:01:54]} 10. Be3 {[%emt 0:00:54]} Nxc3 {[%emt 0:01:08]} 11. bxc3 {[%emt 0:00:09]} e5 {[%emt 0:00:39]} 12. d5 {[%emt 0:01:26]} Na5 {[%emt 0:01:33]} 13. Qd2 {[%emt 0:01:42]} b6 {[%emt 0:00:53]} 14. c5 {[%emt 0:04:16]} Rc8 {[%emt 0:02:26]} 15. Ba6 {[%emt 0:02:52]} Rb8 {[%emt 0:01:56]} 16. c6 {[%emt 0:01:37]} Qd6 {[%emt 0:03:18]} 17. Rad1 {[%emt 0:02:36]} Bc8 {[%emt 0:01:58]} 18. Bb5 {[%emt 0:03:31]} a6 {[%emt 0:01:22]} 19. Be2 {[%emt 0:02:35]} b5 {[%emt 0:05:39]} 20. Ng5 {[%emt 0:02:25]} b4 $2 {[%emt 0:01:55]} (20... f5 21. Ba7 Ra8) 21. Ne4 {[%emt 0:02:15]} bxc3 {[%emt 0:02:32]} 22. Qxc3 {[%emt 0:00:48]} Qb4 {[%emt 0:04:05]} 23. c7 {[%emt 0:01:52]} Rb5 $18 {[%emt 0:08:50]} 24. Bxb5 {[%emt 0:01:32]} Qxb5 {[%emt 0:00:12]} 25. Qc5 {[%emt 0:00:43]} Nb7 {[%emt 0:03:21]} 26. Qxb5 {[%emt 0:01:50]} axb5 {[%emt 0:00:18]} 27. Bc5 {[%emt 0:01:42]} Nxc5 28. Nxc5 {[%emt 0:00:06]} Re8 {[%emt 0:01:29]} 29. d6 {[%emt 0:00:10]} Bf6 {[%emt 0:00:52]} 30. d7 {[%emt 0:00:17]} Rf8 {[%emt 0:00:38]} 31. d8=Q {[%emt 0:01:39]} Bxd8 {[%emt 0:00:28]} 32. cxd8=Q {[%emt 0:01:33]} Rxd8 {[%emt 0:00:15]} 33. Rxd8+ {[%emt 0:00:05]} Kg7 {[%emt 0:00:05]} 34. Rxc8 {[%emt 0:00:05]} b4 {[%emt 0:00:04]} 35. Re1 {[%emt 0:00:13]} f6 {[%emt 0:00:08]} 36. Rc7+ {[%emt 0:00:26]} Kh6 {[%emt 0:00:07]} 37. Re3 {[%emt 0:00:23]} g5 {[%emt 0:00:17]} 38. Rh3+ {[%emt 0:00:32]} Kg6 {[%emt 0:00:07]} 39. Rhxh7 {[%emt 0:00:08]} Kf5 {[%emt 0:00:09]} 40. h3 {[%emt 0:00:29]} Kf4 {[%emt 0:00:12]} 41. g3+ {[%emt 0:30:59]} Kf3 {[%emt 0:30:10]} 42. Rhf7 {[%emt 0:00:05]} Ke2 {[%emt 0:00:10]} 43. Rcd7 {[%emt 0:00:17]} Ke1 {[%emt 0:00:15]} 44. Rxf6 {[%emt 0:00:07]} e4 {[%emt 0:00:07]} 45. Re6 {[%emt 0:00:06]} Ke2 {[%emt 0:00:06]} 46. Rxe4+ {[%emt 0:00:28]} Kf3 {[%emt 0:00:09]} 47. Rf7# {[%emt 0:00:10]} 1-0

[Event "DVM U20w 2021"]
[Site "Kiel"]
[Date "2022.07.25"]
[Round "5"]
[White "Fock, Sana"]
[Black "Schwarzfischer, Julia"]
[Result "1-0"]
[ECO "C28"]
[WhiteElo "1807"]
[BlackElo "1314"]
[Annotator "NA RC COMBH"]
[PlyCount "119"]
[EventDate "2022.07.23"]
[EventType "team-tourn"]
[EventRounds "7"]
[EventCountry "GER"]
[SourceTitle "playchess.com"]
[Source "ChessBase"]
[SourceQuality "1"]
[TimeControl "40/5400+30:1800+30"]

1. e4 {[%emt 0:00:02]} e5 {[%emt 0:00:06]} 2. Nc3 {[%emt 0:00:06]} Nf6 {[%emt 0:00:28]} 3. Bc4 {[%emt 0:00:09]} Nc6 {[%emt 0:00:14]} 4. d3 {[%emt 0:00:19]} Bb4 {[%emt 0:00:35]} 5. Nge2 {[%emt 0:00:12]} d5 {[%emt 0:00:18]} 6. exd5 {[%emt 0:00:06]} Nxd5 {[%emt 0:00:14]} 7. O-O {[%emt 0:00:15]} Be6 {[%emt 0:01:30]} 8. Ne4 {[%emt 0:05:17]} Qe7 {[%emt 0:02:43]} 9. c3 {[%emt 0:02:57]} Bd6 {[%emt 0:00:55]} 10. a4 {[%emt 0:06:13]} f5 {[%emt 0:03:21]} 11. Ng5 {[%emt 0:02:44]} h6 {[%emt 0:01:41]} 12. Nxe6 {[%emt 0:00:50]} Qxe6 {[%emt 0:00:08]} 13. Qb3 {[%emt 0:02:23]} Nce7 {[%emt 0:03:22]} 14. Qxb7 {[%emt 0:04:42]} O-O {[%emt 0:00:31]} 15. Qb3 {[%emt 0:03:27]} f4 {[%emt 0:01:13]} 16. f3 {[%emt 0:10:10]} Kh8 {[%emt 0:00:59]} 17. Kh1 {[%emt 0:03:37]} c6 {[%emt 0:00:56]} 18. Qc2 {[%emt 0:08:38]} Qg6 {[%emt 0:02:16]} 19. g4 {[%emt 0:06:14]} fxg3 {[%emt 0:00:54]} 20. Nxg3 {[%emt 0:00:10]} Nf5 {[%emt 0:01:07]} 21. Nxf5 {[%emt 0:03:50]} Qxf5 {[%emt 0:01:07]} 22. Qe2 {[%emt 0:05:47]} Rae8 {[%emt 0:07:23]} 23. Be3 {[%emt 0:03:16]} Nf4 {[%emt 0:02:07]} 24. Qd2 {[%emt 0:02:33]} Qh3 {[%emt 0:02:05]} 25. Bxf4 {[%emt 0:01:17]} Rxf4 {[%emt 0:00:15]} 26. Qg2 {[%emt 0:01:49]} Qh5 {[%emt 0:00:50]} 27. Rae1 {[%emt 0:03:36]} Ref8 {[%emt 0:03:18]} 28. Bb3 {[%emt 0:04:50]} Rh4 {[%emt 0:03:21]} 29. Re4 {[%emt 0:03:25]} Rh3 {[%emt 0:02:48]} 30. Bd1 {[%emt 0:03:05]} Qf5 {[%emt 0:01:44]} 31. Rg4 {[%emt 0:02:54]} Rh5 {[%emt 0:01:08]} 32. Rxg7 {[%emt 0:01:41]} Qxd3 {[%emt 0:02:18]} 33. Rg1 {[%emt 0:02:30]} Rg5 {[%emt 0:04:50]} 34. Rxg5 {[%emt 0:00:24]} hxg5 {[%emt 0:00:14]} 35. Qxg5 {[%emt 0:01:14]} Qh7 {[%emt 0:00:26]} 36. Bc2 {[%emt 0:01:25]} e4 {[%emt 0:00:19]} 37. Qd2 {[%emt 0:04:28]} Bxh2 {[%emt 0:03:44]} 38. Qxh2 {[%emt 0:00:50]} Qxh2+ {[%emt 0:01:38]} 39. Kxh2 {[%emt 0:00:05]} exf3 {[%emt 0:01:41]} 40. Kg3 {[%emt 0:01:41]} Kg7 {[%emt 0:00:35]} 41. Rf1 {[%emt 0:30:41]} Rb8 {[%emt 0:31:55]} 42. b3 {[%emt 0:00:00]} Kf6 {[%emt 0:00:00]} 43. Kxf3 {[%emt 0:00:00]} Ke5 {[%emt 0:00:00]} 44. Ke3 {[%emt 0:00:00]} Kd5 {[%emt 0:00:00]} 45. Rf5+ {[%emt 0:00:00]} Kd6 {[%emt 0:00:00]} 46. Kd4 {[%emt 0:00:00]} Rh8 {[%emt 0:00:00]} 47. Rf6+ {[%emt 0:00:00]} Kc7 {[%emt 0:00:00]} 48. Kc5 {[%emt 0:00:00]} Rh2 {[%emt 0:00:00]} 49. Rf7+ {[%emt 0:00:00]} Kd8 {[%emt 0:00:00]} 50. Bd3 {[%emt 0:00:00]} Rh3 {[%emt 0:00:00]} 51. Rd7+ {[%emt 0:00:00]} Ke8 {[%emt 0:00:00]} 52. Kxc6 {[%emt 0:00:00]} Rh6+ {[%emt 0:00:00]} 53. Rd6 {[%emt 0:00:00]} Rh2 {[%emt 0:00:00]} 54. b4 {[%emt 0:00:00]} Ra2 {[%emt 0:00:00]} 55. a5 {[%emt 0:00:00]} Ra3 {[%emt 0:00:00]} 56. c4 {[%emt 0:00:00]} Ra4 {[%emt 0:00:00]} 57. Kb5 {[%emt 0:00:00]} Ra1 {[%emt 0:00:00]} 58. c5 {[%emt 0:00:00]} Ra2 {[%emt 0:00:00]} 59. c6 {[%emt 0:00:00]} Ra3 {[%emt 0:00:00]} 60. c7 {[%emt 0:00:00]} 1-0

[Event "DVM U20w 2021"]
[Site "Kiel"]
[Date "2022.07.25"]
[Round "5"]
[White "Peglau, Sarah"]
[Black "Brunner, Sophia"]
[Result "1-0"]
[ECO "A84"]
[WhiteElo "1782"]
[BlackElo "1804"]
[Annotator "NA RC COMBH"]
[PlyCount "49"]
[EventDate "2022.07.23"]
[EventType "team-tourn"]
[EventRounds "7"]
[EventCountry "GER"]
[SourceTitle "playchess.com"]
[Source "ChessBase"]
[SourceQuality "1"]
[TimeControl "40/5400+30:1800+30"]

1. d4 {[%emt 0:00:08]} d5 {[%emt 0:00:22]} 2. c4 {[%emt 0:00:09]} e6 {[%emt 0:00:43]} 3. Nc3 {[%emt 0:00:07]} f5 {[%emt 0:02:18]} 4. f4 {[%emt 0:03:46]} Nf6 {[%emt 0:01:46]} 5. Nf3 {[%emt 0:00:35]} c6 {[%emt 0:00:09]} 6. e3 {[%emt 0:00:20]} Be7 {[%emt 0:01:13]} 7. Bd3 {[%emt 0:02:05]} O-O {[%emt 0:01:26]} 8. Qc2 {[%emt 0:02:27]} Ne4 {[%emt 0:00:21]} 9. g4 {[%emt 0:03:33]} Bh4+ {[%emt 0:17:26]} 10. Ke2 {[%emt 0:01:58]} Nf2 {[%emt 0:02:42]} 11. g5 {[%emt 0:05:22]} Nxh1 {[%emt 0:03:14]} 12. Nxh4 {[%emt 0:02:13]} Qe8 {[%emt 0:03:39]} 13. Qd1 {[%emt 0:08:28]} Qh5+ {[%emt 0:10:05]} 14. Nf3 {[%emt 0:00:15]} h6 {[%emt 0:02:59]} 15. gxh6 {[%emt 0:06:06]} gxh6 {[%emt 0:00:19]} 16. Qxh1 {[%emt 0:00:15]} Nd7 {[%emt 0:01:11]} 17. b3 {[%emt 0:08:50]} Nf6 {[%emt 0:05:04]} 18. Ba3 {[%emt 0:02:02]} Rf7 {[%emt 0:00:20]} 19. Rg1+ {[%emt 0:00:19]} Rg7 {[%emt 0:00:42]} 20. Kd2 {[%emt 0:07:46]} Bd7 {[%emt 0:01:58]} 21. Ne5 {[%emt 0:06:04]} Be8 {[%emt 0:04:46]} 22. Rxg7+ {[%emt 0:01:57]} Kxg7 {[%emt 0:00:08]} 23. Qg2+ {[%emt 0:00:20]} Kh7 {[%emt 0:00:36]} 24. Be2 {[%emt 0:09:08]} Qh4 {[%emt 0:00:49]} 25. Nf3 {[%emt 0:03:00]} 1-0

[Event "DVM U20w 2021"]
[Site "Kiel"]
[Date "2022.07.25"]
[Round "5"]
[White "Wilmink, Anna"]
[Black "Peglau, Charis"]
[Result "0-1"]
[ECO "B14"]
[WhiteElo "1692"]
[BlackElo "1870"]
[Annotator "NA RC COMBH"]
[PlyCount "66"]
[EventDate "2022.07.23"]
[EventType "team-tourn"]
[EventRounds "7"]
[EventCountry "GER"]
[SourceTitle "playchess.com"]
[Source "ChessBase"]
[SourceQuality "1"]
[TimeControl "40/5400+30:1800+30"]

1. e4 {[%emt 0:00:03]} c6 {[%emt 0:00:09]} 2. d4 {[%emt 0:00:08]} d5 {[%emt 0:00:05]} 3. exd5 {[%emt 0:00:11]} cxd5 {[%emt 0:00:05]} 4. c4 {[%emt 0:00:05]} Nf6 {[%emt 0:00:14]} 5. Nc3 {[%emt 0:00:08]} g6 {[%emt 0:00:21]} 6. Qb3 {[%emt 0:00:09]} Bg7 {[%emt 0:00:31]} 7. cxd5 {[%emt 0:01:34]} O-O {[%emt 0:00:30]} 8. Nf3 {[%emt 0:01:00]} a5 {[%emt 0:01:58]} 9. a4 {[%emt 0:02:22]} Na6 {[%emt 0:00:17]} 10. Bxa6 {[%emt 0:04:25]} Rxa6 {[%emt 0:00:45]} 11. O-O {[%emt 0:02:21]} Rb6 {[%emt 0:10:24]} 12. Qa2 {[%emt 0:05:31]} Bf5 {[%emt 0:03:01]} 13. Nd2 {[%emt 0:06:32]} Rb4 {[%emt 0:01:13]} 14. Nf3 {[%emt 0:08:24]} Bd3 {[%emt 0:01:23]} 15. Re1 {[%emt 0:03:13]} Bc4 {[%emt 0:01:21]} 16. Qa3 {[%emt 0:02:14]} Nxd5 {[%emt 0:05:37]} 17. Bd2 $17 {[%emt 0:06:40]} (17. Bg5 $142 Re8 18. Rab1) 17... Nb6 {[%emt 0:16:10]} 18. Be3 {[%emt 0:09:24]} e6 {[%emt 0:02:59]} 19. Rab1 {[%emt 0:07:44]} Bb3 {[%emt 0:02:54]} 20. Rec1 {[%emt 0:04:04]} Nc4 {[%emt 0:14:50]} 21. Qa1 {[%emt 0:00:43]} Qd7 {[%emt 0:01:01]} 22. Re1 {[%emt 0:09:23]} Bxa4 {[%emt 0:02:40]} 23. Re2 {[%emt 0:02:13]} Bc6 {[%emt 0:06:16]} 24. Nd2 {[%emt 0:07:29]} Ra8 {[%emt 0:11:31]} 25. Nxc4 {[%emt 0:02:27]} Rxc4 {[%emt 0:00:02]} 26. b3 {[%emt 0:00:46]} Rb4 {[%emt 0:00:23]} 27. Rd2 {[%emt 0:02:32]} Ra6 {[%emt 0:03:39]} 28. Qa3 {[%emt 0:03:15]} h5 {[%emt 0:04:11]} 29. h3 {[%emt 0:01:37]} Kh7 {[%emt 0:02:09]} 30. Kh1 {[%emt 0:00:52]} Bxd4 {[%emt 0:05:24]} 31. Rbd1 {[%emt 0:05:25]} e5 {[%emt 0:00:15]} 32. Ne2 {[%emt 0:02:10]} Qxh3+ {[%emt 0:00:11]} 33. Kg1 {[%emt 0:00:18]} Qxg2# {[%emt 0:00:34]} 0-1

[Event "DVM U20w 2021"]
[Site "Kiel"]
[Date "2022.07.25"]
[Round "5"]
[White "Albayrak, Berrak"]
[Black "Eichhorn, Elisabeth"]
[Result "1-0"]
[ECO "B24"]
[WhiteElo "1592"]
[BlackElo "1325"]
[Annotator "NA RC COMBH"]
[PlyCount "65"]
[EventDate "2022.07.23"]
[EventType "team-tourn"]
[EventRounds "7"]
[EventCountry "GER"]
[SourceTitle "playchess.com"]
[Source "ChessBase"]
[SourceQuality "1"]
[TimeControl "40/5400+30:1800+30"]

1. e4 {[%emt 0:00:02]} c5 {[%emt 0:00:07]} 2. Nc3 {[%emt 0:00:06]} Nc6 {[%emt 0:00:24]} 3. g3 {[%emt 0:00:13]} g6 {[%emt 0:00:37]} 4. Bg2 {[%emt 0:00:11]} Bg7 {[%emt 0:00:13]} 5. d3 {[%emt 0:00:18]} e6 {[%emt 0:00:14]} 6. Be3 {[%emt 0:01:21]} Nge7 {[%emt 0:00:17]} 7. Qd2 {[%emt 0:05:22]} d5 {[%emt 0:04:31]} 8. exd5 {[%emt 0:08:13]} exd5 {[%emt 0:02:47]} 9. Bh6 {[%emt 0:05:26]} O-O {[%emt 0:02:43]} 10. Bxg7 {[%emt 0:06:02]} Kxg7 {[%emt 0:00:31]} 11. Nf3 {[%emt 0:03:41]} d4 {[%emt 0:04:28]} 12. Ne4 {[%emt 0:10:56]} b6 {[%emt 0:09:37]} 13. h4 {[%emt 0:08:52]} h6 {[%emt 0:07:19]} 14. h5 {[%emt 0:11:06]} g5 {[%emt 0:29:29]} 15. g4 {[%emt 0:10:26]} f6 {[%emt 0:03:41]} 16. O-O-O {[%emt 0:08:05]} Nd5 {[%emt 0:02:39]} 17. Rhg1 {[%emt 0:05:30]} Nf4 {[%emt 0:03:47]} 18. Bh1 {[%emt 0:00:44]} Ne7 {[%emt 0:06:23]} 19. Nh4 {[%emt 0:03:04]} Rb8 {[%emt 0:01:08]} 20. Nf5+ {[%emt 0:00:47]} Kh7 {[%emt 0:01:35]} 21. Ned6 {[%emt 0:02:11]} Nxf5 {[%emt 0:04:16]} 22. Nxf5 {[%emt 0:00:13]} Bb7 {[%emt 0:01:24]} 23. Rde1 {[%emt 0:01:35]} Rf7 {[%emt 0:01:03]} 24. Bxb7 {[%emt 0:03:37]} Rbxb7 {[%emt 0:00:19]} 25. Re4 {[%emt 0:00:12]} Qc7 {[%emt 0:02:22]} 26. Rge1 {[%emt 0:00:45]} Qd8 {[%emt 0:02:14]} 27. Re8 {[%emt 0:01:03]} Qd5 {[%emt 0:03:02]} 28. Kb1 {[%emt 0:00:41]} Rbd7 {[%emt 0:02:18]} 29. R1e4 {[%emt 0:01:50]} a6 {[%emt 0:01:27]} 30. b3 {[%emt 0:00:37]} a5 {[%emt 0:01:02]} 31. Rxf4 {[%emt 0:00:50]} gxf4 {[%emt 0:00:21]} 32. Qxf4 {[%emt 0:00:06]} Qh1+ {[%emt 0:00:22]} 33. Kb2 {[%emt 0:00:07]} 1-0